[Event "Titled Tuesday Blitz April 05 Early 2022"]
[White "Mickiewicz, Piotr"]
[Black "Gabdrakhmanov, Azat"]
[WhiteFideId "1114891"]
[BlackFideId "34189197"]
[WhiteElo "2266"]
[BlackElo "2279"]
[Result "0-1"]
[Round "03"]
[TimeControl "180+1"]
[Date "2022.04.05"]
[WhiteClock "0:00:01"]
[BlackClock "0:00:10"]

1. Nf3 {[%clk 0:03:00]}  c5 {[%clk 0:02:59]} 2. g3 {[%clk 0:03:01]}  b6 {[%clk 0:02:59]} 3. Bg2 {[%clk 0:03:02]}  Bb7 {[%clk 0:03:00]} 4. O-O {[%clk 0:03:02]}  Nf6 {[%clk 0:03:01]} 5. d3 {[%clk 0:03:02]}  e6 {[%clk 0:03:00]} 6. e4 {[%clk 0:03:00]}  d5 {[%clk 0:02:59]} 7. Nc3 {[%clk 0:03:00]}  d4 {[%clk 0:02:58]} 8. Ne2 {[%clk 0:02:59]}  Nc6 {[%clk 0:02:58]} 9. a4 {[%clk 0:02:56]}  Be7 {[%clk 0:02:58]} 10. Nd2 {[%clk 0:02:23]}  Nd7 {[%clk 0:02:57]} 11. Nc4 {[%clk 0:02:20]}  Nce5 {[%clk 0:02:56]} 12. b3 {[%clk 0:02:20]}  Nxc4 {[%clk 0:02:55]} 13. bxc4 {[%clk 0:02:20]}  h5 {[%clk 0:02:54]} 14. h4 {[%clk 0:02:18]}  Qc7 {[%clk 0:02:40]} 15. a5 {[%clk 0:02:17]}  Bc6 {[%clk 0:02:35]} 16. Bd2 {[%clk 0:02:16]}  b5 {[%clk 0:02:28]} 17. cxb5 {[%clk 0:02:15]}  Bxb5 {[%clk 0:02:29]} 18. Nf4 {[%clk 0:02:09]}  g5 {[%clk 0:02:15]} 19. hxg5 {[%clk 0:02:04]}  h4 {[%clk 0:02:10]} 20. g6 {[%clk 0:02:02]}  Ne5 {[%clk 0:02:01]} 21. g7 {[%clk 0:01:47]}  Rg8 {[%clk 0:01:59]} 22. Qh5 {[%clk 0:01:47]}  O-O-O {[%clk 0:01:44]} 23. Qh7 {[%clk 0:01:44]}  Bf6 {[%clk 0:01:24]} 24. Nh5 {[%clk 0:01:41]}  Bxg7 {[%clk 0:01:22]} 25. Nxg7 {[%clk 0:01:30]}  Rh8 {[%clk 0:01:21]} 26. Nxe6 {[%clk 0:01:26]}  Qd6 {[%clk 0:00:50]} 27. Qf5 {[%clk 0:01:11]}  fxe6 {[%clk 0:00:48]} 28. Qg5 {[%clk 0:01:00]}  Rdg8 {[%clk 0:00:45]} 29. Qf6 {[%clk 0:00:57]}  Nd7 {[%clk 0:00:36]} 30. e5 {[%clk 0:00:42]}  Qxe5 {[%clk 0:00:22]} 31. Qf3 {[%clk 0:00:35]}  hxg3 {[%clk 0:00:15]} 32. Bf4 {[%clk 0:00:34]}  Qd5 {[%clk 0:00:15]} 33. Bxg3 {[%clk 0:00:28]}  Qxf3 {[%clk 0:00:14]} 34. Bxf3 {[%clk 0:00:28]}  Ne5 {[%clk 0:00:15]} 35. Be4 {[%clk 0:00:29]}  Ng4 {[%clk 0:00:14]} 36. Kg2 {[%clk 0:00:27]}  Kd7 {[%clk 0:00:12]} 37. Rh1 {[%clk 0:00:27]}  Bc6 {[%clk 0:00:12]} 38. Bf3 {[%clk 0:00:17]}  Nf6 {[%clk 0:00:08]} 39. Rxh8 {[%clk 0:00:15]}  Rxh8 {[%clk 0:00:09]} 40. Bxc6+ {[%clk 0:00:15]}  Kxc6 {[%clk 0:00:09]} 41. Re1 {[%clk 0:00:16]}  Kd7 {[%clk 0:00:08]} 42. Re5 {[%clk 0:00:17]}  Nd5 {[%clk 0:00:07]} 43. Rg5 {[%clk 0:00:16]}  Rf8 {[%clk 0:00:08]} 44. Rg7+ {[%clk 0:00:16]}  Kc6 {[%clk 0:00:08]} 45. Rxa7 {[%clk 0:00:16]}  Nf4+ {[%clk 0:00:08]} 46. Kf1 {[%clk 0:00:15]}  Nd5 {[%clk 0:00:08]} 47. Ra6+ {[%clk 0:00:15]}  Kb5 {[%clk 0:00:09]} 48. Rxe6 {[%clk 0:00:15]}  Kxa5 {[%clk 0:00:09]} 49. Re5 {[%clk 0:00:15]}  Rd8 {[%clk 0:00:09]} 50. Bh4 {[%clk 0:00:14]}  Rd7 {[%clk 0:00:09]} 51. Ke2 {[%clk 0:00:13]}  Kb5 {[%clk 0:00:10]} 52. Kd2 {[%clk 0:00:13]}  Nb4 {[%clk 0:00:10]} 53. Bg3 {[%clk 0:00:13]}  Ra7 {[%clk 0:00:09]} 54. Re8 {[%clk 0:00:12]}  Ra2 {[%clk 0:00:09]} 55. Rb8+ {[%clk 0:00:13]}  Kc6 {[%clk 0:00:10]} 56. Rc8+ {[%clk 0:00:12]}  Kb6 {[%clk 0:00:10]} 57. Bd6 {[%clk 0:00:11]}  Rxc2+ {[%clk 0:00:10]} 58. Kd1 {[%clk 0:00:11]}  Rc3 {[%clk 0:00:10]} 59. f4 {[%clk 0:00:10]}  Rxd3+ {[%clk 0:00:09]} 60. Ke2 {[%clk 0:00:09]}  Re3+ {[%clk 0:00:10]} 61. Kf2 {[%clk 0:00:10]}  Na6 {[%clk 0:00:10]} 62. f5 {[%clk 0:00:09]}  Rh3 {[%clk 0:00:09]} 63. f6 {[%clk 0:00:08]}  Rh6 {[%clk 0:00:09]} 64. Be7 {[%clk 0:00:08]}  Rh7 {[%clk 0:00:09]} 65. Kf3 {[%clk 0:00:08]}  Nc7 {[%clk 0:00:09]} 66. Ke4 {[%clk 0:00:08]}  Kc6 {[%clk 0:00:09]} 67. Ke5 {[%clk 0:00:07]}  Kd7 {[%clk 0:00:09]} 68. Rd8+ {[%clk 0:00:07]}  Kc6 {[%clk 0:00:09]} 69. Kf5 {[%clk 0:00:07]}  Rh5+ {[%clk 0:00:09]} 70. Kg6 {[%clk 0:00:06]}  Rh1 {[%clk 0:00:09]} 71. f7 {[%clk 0:00:06]}  Rg1+ {[%clk 0:00:10]} 72. Bg5 {[%clk 0:00:05]}  Rf1 {[%clk 0:00:10]} 73. f8=Q {[%clk 0:00:04]}  Rxf8 {[%clk 0:00:10]} 74. Rxf8 {[%clk 0:00:05]}  Ne6 {[%clk 0:00:10]} 75. Rf6 {[%clk 0:00:04]}  Kd5 {[%clk 0:00:10]} 76. Kf5 {[%clk 0:00:05]}  Nxg5 {[%clk 0:00:09]} 77. Kxg5 {[%clk 0:00:05]}  Ke4 {[%clk 0:00:10]} 78. Kg4 {[%clk 0:00:04]}  c4 {[%clk 0:00:09]} 79. Re6+ {[%clk 0:00:04]}  Kd3 {[%clk 0:00:09]} 80. Kf3 {[%clk 0:00:03]}  c3 {[%clk 0:00:09]} 81. Rc6 {[%clk 0:00:01]}  c2 {[%clk 0:00:10]} 0-1


[Site "https://www.chess.com"]

[Event "Titled Tuesday Blitz April 05 Early 2022"]
[White "Mogirzan, Matei-Valeriu"]
[Black "Adewumi, Tanitoluwa"]
[WhiteFideId "1257455"]
[BlackFideId "30966396"]
[WhiteElo "1733"]
[BlackElo "2595"]
[Result "1/2-1/2"]
[Round "03"]
[TimeControl "180+1"]
[Date "2022.04.05"]
[WhiteClock "0:01:35"]
[BlackClock "0:01:18"]

1. e4 {[%clk 0:03:00]}  c5 {[%clk 0:03:00]} 2. Nf3 {[%clk 0:02:58]}  g6 {[%clk 0:02:59]} 3. d4 {[%clk 0:02:58]}  cxd4 {[%clk 0:03:00]} 4. c3 {[%clk 0:02:55]}  Bg7 {[%clk 0:02:53]} 5. cxd4 {[%clk 0:02:55]}  d5 {[%clk 0:02:47]} 6. exd5 {[%clk 0:02:50]}  Nf6 {[%clk 0:02:45]} 7. Nc3 {[%clk 0:02:50]}  Nxd5 {[%clk 0:02:42]} 8. Bc4 {[%clk 0:02:49]}  Nxc3 {[%clk 0:02:42]} 9. bxc3 {[%clk 0:02:45]}  O-O {[%clk 0:02:42]} 10. h4 {[%clk 0:02:40]}  Re8 {[%clk 0:02:43]} 11. Ng5 {[%clk 0:02:32]}  e6 {[%clk 0:02:38]} 12. h5 {[%clk 0:02:25]}  h6 {[%clk 0:01:47]} 13. Nxf7 {[%clk 0:01:57]}  Kxf7 {[%clk 0:01:46]} 14. hxg6+ {[%clk 0:01:57]}  Kg8 {[%clk 0:01:39]} 15. Bxh6 {[%clk 0:01:51]}  Bxh6 {[%clk 0:01:18]} 16. Rxh6 {[%clk 0:01:47]}  Qg5 {[%clk 0:01:18]} 17. Qf3 {[%clk 0:01:35]} 1/2-1/2


[Site "https://www.chess.com"]

[Event "Titled Tuesday Blitz April 05 Early 2022"]
[White "Mohammadian, Mohammad"]
[Black "Alboredo, Julia"]
[WhiteFideId "12566055"]
[BlackFideId "2124807"]
[WhiteElo "1544"]
[BlackElo "2041"]
[Result "0-1"]
[Round "03"]
[TimeControl "180+1"]
[Date "2022.04.05"]
[WhiteClock "0:00:06"]
[BlackClock "0:00:35"]

1. e4 {[%clk 0:03:00]}  c5 {[%clk 0:02:59]} 2. Nf3 {[%clk 0:02:59]}  d6 {[%clk 0:02:59]} 3. d4 {[%clk 0:02:57]}  cxd4 {[%clk 0:03:00]} 4. Nxd4 {[%clk 0:02:57]}  Nf6 {[%clk 0:03:00]} 5. Nc3 {[%clk 0:02:55]}  g6 {[%clk 0:02:58]} 6. Be2 {[%clk 0:02:50]}  Bg7 {[%clk 0:02:57]} 7. Be3 {[%clk 0:02:49]}  Nc6 {[%clk 0:02:53]} 8. Qd2 {[%clk 0:02:47]}  O-O {[%clk 0:02:49]} 9. O-O-O {[%clk 0:02:43]}  Bd7 {[%clk 0:02:42]} 10. f3 {[%clk 0:02:37]}  Rc8 {[%clk 0:02:38]} 11. Nxc6 {[%clk 0:02:37]}  Bxc6 {[%clk 0:02:26]} 12. Bh6 {[%clk 0:02:36]}  Qa5 {[%clk 0:02:10]} 13. Bxg7 {[%clk 0:02:33]}  Kxg7 {[%clk 0:02:11]} 14. h4 {[%clk 0:02:29]}  b5 {[%clk 0:02:04]} 15. a3 {[%clk 0:02:12]}  b4 {[%clk 0:01:59]} 16. axb4 {[%clk 0:02:11]}  Qxb4 {[%clk 0:01:49]} 17. h5 {[%clk 0:02:10]}  Rb8 {[%clk 0:01:48]} 18. b3 {[%clk 0:01:51]}  Qa3+ {[%clk 0:01:46]} 19. Kb1 {[%clk 0:01:49]}  a5 {[%clk 0:01:31]} 20. hxg6 {[%clk 0:01:45]}  fxg6 {[%clk 0:01:31]} 21. Qh6+ {[%clk 0:01:43]}  Kf7 {[%clk 0:01:28]} 22. Nd5 {[%clk 0:01:38]}  Rxb3+ {[%clk 0:01:07]} 23. cxb3 {[%clk 0:01:30]}  Qxb3+ {[%clk 0:01:08]} 24. Kc1 {[%clk 0:01:24]}  Bxd5 {[%clk 0:01:06]} 25. Rd3 {[%clk 0:00:37]}  Rc8+ {[%clk 0:01:03]} 26. Kd2 {[%clk 0:00:37]}  Qb4+ {[%clk 0:01:01]} 27. Ke3 {[%clk 0:00:27]}  Bc4 {[%clk 0:00:58]} 28. Rhd1 {[%clk 0:00:14]}  Bxd3 {[%clk 0:00:57]} 29. Bxd3 {[%clk 0:00:13]}  Rc3 {[%clk 0:00:44]} 30. Qf4 {[%clk 0:00:10]}  Qc5+ {[%clk 0:00:39]} 31. Kd2 {[%clk 0:00:08]}  Ra3 {[%clk 0:00:38]} 32. e5 {[%clk 0:00:06]}  Ra2+ {[%clk 0:00:35]} 0-1


[Site "https://www.chess.com"]

[Event "Titled Tuesday Blitz April 05 Early 2022"]
[White "Mokshanov, Alexey"]
[Black "Demin, Vladimir"]
[WhiteFideId "24121657"]
[BlackFideId "4167457"]
[WhiteElo "2141"]
[BlackElo "2475"]
[Result "1-0"]
[Round "03"]
[TimeControl "180+1"]
[Date "2022.04.05"]
[WhiteClock "0:01:28"]
[BlackClock "0:00:06"]

1. e4 {[%clk 0:03:00]}  c5 {[%clk 0:02:59]} 2. Nf3 {[%clk 0:03:00]}  Nc6 {[%clk 0:02:58]} 3. Bb5 {[%clk 0:03:00]}  d6 {[%clk 0:02:58]} 4. Bxc6+ {[%clk 0:03:00]}  bxc6 {[%clk 0:02:57]} 5. O-O {[%clk 0:03:00]}  e5 {[%clk 0:02:51]} 6. c3 {[%clk 0:03:00]}  Nf6 {[%clk 0:02:49]} 7. Re1 {[%clk 0:02:51]}  Bg4 {[%clk 0:02:44]} 8. d4 {[%clk 0:02:51]}  cxd4 {[%clk 0:02:44]} 9. cxd4 {[%clk 0:02:52]}  Be7 {[%clk 0:02:30]} 10. dxe5 {[%clk 0:02:51]}  Bxf3 {[%clk 0:02:27]} 11. Qxf3 {[%clk 0:02:51]}  dxe5 {[%clk 0:02:26]} 12. Nd2 {[%clk 0:02:50]}  O-O {[%clk 0:02:24]} 13. Nc4 {[%clk 0:02:50]}  Qc7 {[%clk 0:02:16]} 14. b3 {[%clk 0:02:50]}  Nd7 {[%clk 0:02:10]} 15. Bb2 {[%clk 0:02:50]}  f6 {[%clk 0:02:10]} 16. Rac1 {[%clk 0:02:49]}  Nb6 {[%clk 0:02:08]} 17. Na5 {[%clk 0:02:46]}  c5 {[%clk 0:02:05]} 18. Ba3 {[%clk 0:02:42]}  Rad8 {[%clk 0:01:59]} 19. Qc3 {[%clk 0:02:38]}  Rc8 {[%clk 0:01:37]} 20. Red1 {[%clk 0:02:24]}  Rfd8 {[%clk 0:01:37]} 21. Rxd8+ {[%clk 0:02:22]}  Rxd8 {[%clk 0:01:27]} 22. g3 {[%clk 0:02:16]}  Nd7 {[%clk 0:00:52]} 23. b4 {[%clk 0:01:35]}  Rc8 {[%clk 0:00:41]} 24. b5 {[%clk 0:01:35]}  Nb6 {[%clk 0:00:33]} 25. Nc6 {[%clk 0:01:34]}  Na4 {[%clk 0:00:08]} 26. Qc4+ {[%clk 0:01:34]}  Kh8 {[%clk 0:00:07]} 27. Qxa4 {[%clk 0:01:34]}  a6 {[%clk 0:00:06]} 28. Nxe7 {[%clk 0:01:31]}  Qxe7 {[%clk 0:00:06]} 29. bxa6 {[%clk 0:01:28]} 1-0


[Site "https://www.chess.com"]

[Event "Titled Tuesday Blitz April 05 Early 2022"]
[White "Nogerbek, Kazybek"]
[Black "Chen, Qi b"]
[WhiteFideId "13710427"]
[BlackFideId "8614733"]
[WhiteElo "2466"]
[BlackElo "2432"]
[Result "*"]
[Round "03"]
[TimeControl "180+1"]
[Date "2022.04.05"]
[WhiteClock "0:01:40"]
[BlackClock "0:01:01"]

1. e4 {[%clk 0:02:32]}  c5 {[%clk 0:02:59]} 2. Nf3 {[%clk 0:02:31]}  Nc6 {[%clk 0:03:00]} 3. Nc3 {[%clk 0:02:29]}  g6 {[%clk 0:02:54]} 4. d4 {[%clk 0:02:27]}  cxd4 {[%clk 0:02:54]} 5. Nxd4 {[%clk 0:02:28]}  Bg7 {[%clk 0:02:53]} 6. Be3 {[%clk 0:02:28]}  Nf6 {[%clk 0:02:54]} 7. Bc4 {[%clk 0:02:29]}  O-O {[%clk 0:02:53]} 8. Bb3 {[%clk 0:02:30]}  d5 {[%clk 0:02:53]} 9. exd5 {[%clk 0:02:15]}  Na5 {[%clk 0:02:52]} 10. Nde2 {[%clk 0:02:11]}  b6 {[%clk 0:02:05]} 11. O-O {[%clk 0:02:11]}  Bb7 {[%clk 0:02:04]} 12. d6 {[%clk 0:02:08]}  exd6 {[%clk 0:01:50]} 13. Bd4 {[%clk 0:02:07]}  Rc8 {[%clk 0:01:46]} 14. Qd3 {[%clk 0:02:04]}  Nc6 {[%clk 0:01:30]} 15. Rad1 {[%clk 0:02:03]}  Nxd4 {[%clk 0:01:26]} 16. Nxd4 {[%clk 0:02:04]}  a6 {[%clk 0:01:24]} 17. a4 {[%clk 0:01:56]}  Re8 {[%clk 0:01:21]} 18. Nde2 {[%clk 0:01:52]}  Ne4 {[%clk 0:01:05]} 19. Nxe4 {[%clk 0:01:40]}  Bxe4 {[%clk 0:01:01]} *


[Site "https://www.chess.com"]

[Event "Titled Tuesday Blitz April 05 Early 2022"]
[White "Omariev, Maksim"]
[Black "Tiarks, Jann-Christian"]
[WhiteFideId "4193423"]
[BlackFideId "12951595"]
[WhiteElo "2487"]
[BlackElo "2176"]
[Result "1-0"]
[Round "03"]
[TimeControl "180+1"]
[Date "2022.04.05"]
[WhiteClock "0:00:41"]
[BlackClock "0:00:59"]

1. e4 {[%clk 0:03:00]}  c5 {[%clk 0:02:56]} 2. Nf3 {[%clk 0:03:00]}  Nf6 {[%clk 0:02:56]} 3. e5 {[%clk 0:02:56]}  Nd5 {[%clk 0:02:55]} 4. d4 {[%clk 0:02:57]}  cxd4 {[%clk 0:02:52]} 5. Nxd4 {[%clk 0:02:58]}  d6 {[%clk 0:02:49]} 6. exd6 {[%clk 0:02:50]}  e6 {[%clk 0:02:39]} 7. c4 {[%clk 0:02:43]}  Nf6 {[%clk 0:02:36]} 8. Nb5 {[%clk 0:02:31]}  Na6 {[%clk 0:02:28]} 9. Be2 {[%clk 0:02:24]}  Ne4 {[%clk 0:02:26]} 10. Bf4 {[%clk 0:02:21]}  g5 {[%clk 0:01:54]} 11. Be5 {[%clk 0:02:15]}  f6 {[%clk 0:01:54]} 12. Bh5+ {[%clk 0:01:51]}  Kd7 {[%clk 0:01:49]} 13. Bg3 {[%clk 0:01:38]}  Qa5+ {[%clk 0:01:47]} 14. N1c3 {[%clk 0:01:34]}  Nxc3 {[%clk 0:01:29]} 15. Nxc3 {[%clk 0:01:35]}  Qb4 {[%clk 0:01:21]} 16. O-O {[%clk 0:01:27]}  Bxd6 {[%clk 0:01:08]} 17. a3 {[%clk 0:00:54]}  Qb6 {[%clk 0:00:59]} 18. b4 {[%clk 0:00:41]} 1-0


[Site "https://www.chess.com"]

[Event "Titled Tuesday Blitz April 05 Early 2022"]
[White "Pinheiro, Iung Alicio de O."]
[Black "Stribuk, Artiom"]
[WhiteFideId "2104350"]
[BlackFideId "13515659"]
[WhiteElo "2509"]
[BlackElo "2259"]
[Result "0-1"]
[Round "03"]
[TimeControl "180+1"]
[Date "2022.04.05"]
[WhiteClock "0:00:06"]
[BlackClock "0:00:14"]

1. c4 {[%clk 0:03:00]}  g6 {[%clk 0:02:56]} 2. g3 {[%clk 0:02:59]}  Bg7 {[%clk 0:02:49]} 3. Bg2 {[%clk 0:02:58]}  c5 {[%clk 0:02:49]} 4. Nc3 {[%clk 0:02:54]}  Nc6 {[%clk 0:02:46]} 5. a3 {[%clk 0:02:51]}  d6 {[%clk 0:02:41]} 6. Rb1 {[%clk 0:02:50]}  e6 {[%clk 0:02:40]} 7. b4 {[%clk 0:02:45]}  Nge7 {[%clk 0:02:40]} 8. bxc5 {[%clk 0:02:33]}  dxc5 {[%clk 0:02:38]} 9. Nh3 {[%clk 0:02:18]}  O-O {[%clk 0:02:36]} 10. O-O {[%clk 0:02:18]}  b6 {[%clk 0:02:35]} 11. Nf4 {[%clk 0:02:14]}  Bb7 {[%clk 0:02:35]} 12. Bb2 {[%clk 0:02:10]}  Qd7 {[%clk 0:02:17]} 13. a4 {[%clk 0:01:53]}  Rad8 {[%clk 0:02:05]} 14. d3 {[%clk 0:01:52]}  Na5 {[%clk 0:01:47]} 15. Bxb7 {[%clk 0:01:36]}  Qxb7 {[%clk 0:01:48]} 16. Qc2 {[%clk 0:01:37]}  Nf5 {[%clk 0:01:40]} 17. Nb5 {[%clk 0:01:28]}  Nc6 {[%clk 0:01:33]} 18. Bxg7 {[%clk 0:01:25]}  Kxg7 {[%clk 0:01:33]} 19. Qb2+ {[%clk 0:01:09]}  Kg8 {[%clk 0:01:32]} 20. e3 {[%clk 0:00:54]}  Nb4 {[%clk 0:01:17]} 21. Rfd1 {[%clk 0:00:49]}  Rd7 {[%clk 0:01:10]} 22. Rd2 {[%clk 0:00:26]}  Rfd8 {[%clk 0:01:09]} 23. Rbd1 {[%clk 0:00:26]}  Qf3 {[%clk 0:00:54]} 24. h4 {[%clk 0:00:23]}  h6 {[%clk 0:00:47]} 25. Qf6 {[%clk 0:00:17]}  Kh7 {[%clk 0:00:39]} 26. Nc3 {[%clk 0:00:10]}  Nc6 {[%clk 0:00:37]} 27. Ne4 {[%clk 0:00:09]}  Ng7 {[%clk 0:00:24]} 28. Qb2 {[%clk 0:00:08]}  Ne8 {[%clk 0:00:23]} 29. Nf6+ {[%clk 0:00:07]}  Nxf6 {[%clk 0:00:22]} 30. Qxf6 {[%clk 0:00:08]}  Qg4 {[%clk 0:00:20]} 31. Qc3 {[%clk 0:00:06]}  Qf5 {[%clk 0:00:20]} 32. Kg2 {[%clk 0:00:06]}  Kg8 {[%clk 0:00:20]} 33. Qb2 {[%clk 0:00:05]}  Qe5 {[%clk 0:00:19]} 34. Qb5 {[%clk 0:00:04]}  Qc7 {[%clk 0:00:19]} 35. Qb2 {[%clk 0:00:04]}  Qe5 {[%clk 0:00:19]} 36. Qc2 {[%clk 0:00:03]}  Nb4 {[%clk 0:00:19]} 37. Qb3 {[%clk 0:00:04]}  a5 {[%clk 0:00:18]} 38. Kg1 {[%clk 0:00:05]}  g5 {[%clk 0:00:18]} 39. Ne2 {[%clk 0:00:05]}  gxh4 {[%clk 0:00:17]} 40. gxh4 {[%clk 0:00:06]}  Kh7 {[%clk 0:00:17]} 41. Nf4 {[%clk 0:00:06]}  Rg8+ {[%clk 0:00:17]} 42. Kf1 {[%clk 0:00:07]}  Qf5 {[%clk 0:00:17]} 43. Re2 {[%clk 0:00:07]}  Qg4 {[%clk 0:00:17]} 44. Ke1 {[%clk 0:00:08]}  e5 {[%clk 0:00:15]} 45. Qc3 {[%clk 0:00:07]}  exf4 {[%clk 0:00:15]} 46. exf4 {[%clk 0:00:07]}  Qxh4 {[%clk 0:00:14]} 47. Kd2 {[%clk 0:00:07]}  Qxf4+ {[%clk 0:00:12]} 48. Re3 {[%clk 0:00:06]}  Qxf2+ {[%clk 0:00:13]} 49. Re2 {[%clk 0:00:07]}  Qf4+ {[%clk 0:00:13]} 50. Ke1 {[%clk 0:00:06]}  Rg1# {[%clk 0:00:14]} 0-1


[Site "https://www.chess.com"]

[Event "Titled Tuesday Blitz April 05 Early 2022"]
[White "Pliukha, Myhajlo"]
[Black "Oparin, Grigoriy"]
[WhiteFideId "14164698"]
[BlackFideId "24125890"]
[WhiteElo "2229"]
[BlackElo "2665"]
[Result "*"]
[Round "03"]
[TimeControl "180+1"]
[Date "2022.04.05"]
[WhiteClock "0:00:50"]
[BlackClock "0:01:51"]

1. e4 {[%clk 0:02:39]}  c5 {[%clk 0:02:59]} 2. Nc3 {[%clk 0:02:39]}  Nc6 {[%clk 0:02:56]} 3. Nf3 {[%clk 0:02:39]}  d6 {[%clk 0:02:55]} 4. d4 {[%clk 0:02:39]}  cxd4 {[%clk 0:02:56]} 5. Nxd4 {[%clk 0:02:40]}  Nf6 {[%clk 0:02:56]} 6. Bc4 {[%clk 0:02:36]}  e6 {[%clk 0:02:47]} 7. O-O {[%clk 0:02:34]}  Bd7 {[%clk 0:02:46]} 8. Bg5 {[%clk 0:02:28]}  Rc8 {[%clk 0:02:46]} 9. Ndb5 {[%clk 0:02:23]}  Ne5 {[%clk 0:02:14]} 10. Be2 {[%clk 0:02:23]}  Bxb5 {[%clk 0:02:14]} 11. Bxb5+ {[%clk 0:02:22]}  Nc6 {[%clk 0:02:15]} 12. Qd3 {[%clk 0:02:10]}  Be7 {[%clk 0:02:12]} 13. Rad1 {[%clk 0:02:10]}  O-O {[%clk 0:02:12]} 14. Qe3 {[%clk 0:01:30]}  Qa5 {[%clk 0:02:08]} 15. Bf4 {[%clk 0:00:57]}  Ne5 {[%clk 0:02:04]} 16. Be2 {[%clk 0:00:51]}  Rc6 {[%clk 0:01:59]} 17. h3 {[%clk 0:00:51]}  Rfc8 {[%clk 0:01:59]} 18. Qg3 {[%clk 0:00:50]}  a6 {[%clk 0:01:51]} 19. a3 {[%clk 0:00:50]} *


[Site "https://www.chess.com"]

[Event "Titled Tuesday Blitz April 05 Early 2022"]
[White "Polster, Christian"]
[Black "Suarez Uriel, Adrian"]
[WhiteFideId "12965081"]
[BlackFideId "22230874"]
[WhiteElo "2342"]
[BlackElo "2316"]
[Result "0-1"]
[Round "03"]
[TimeControl "180+1"]
[Date "2022.04.05"]
[WhiteClock "0:00:01"]
[BlackClock "0:00:33"]

1. d4 {[%clk 0:03:00]}  Nf6 {[%clk 0:02:57]} 2. Bf4 {[%clk 0:03:00]}  g6 {[%clk 0:02:58]} 3. e3 {[%clk 0:03:00]}  Bg7 {[%clk 0:02:58]} 4. Nd2 {[%clk 0:02:58]}  O-O {[%clk 0:02:59]} 5. h3 {[%clk 0:02:57]}  d6 {[%clk 0:02:58]} 6. Ngf3 {[%clk 0:02:57]}  Nc6 {[%clk 0:02:57]} 7. Be2 {[%clk 0:02:56]}  Nd7 {[%clk 0:02:57]} 8. Bh2 {[%clk 0:02:54]}  e5 {[%clk 0:02:58]} 9. c4 {[%clk 0:02:41]}  exd4 {[%clk 0:02:57]} 10. exd4 {[%clk 0:02:39]}  Nxd4 {[%clk 0:02:57]} 11. Nxd4 {[%clk 0:02:38]}  Bxd4 {[%clk 0:02:58]} 12. O-O {[%clk 0:02:36]}  Bxb2 {[%clk 0:02:58]} 13. Rb1 {[%clk 0:02:35]}  Bg7 {[%clk 0:02:58]} 14. Nb3 {[%clk 0:02:26]}  a5 {[%clk 0:02:56]} 15. Bf3 {[%clk 0:02:12]}  a4 {[%clk 0:02:54]} 16. Nd4 {[%clk 0:02:12]}  Nc5 {[%clk 0:02:55]} 17. Re1 {[%clk 0:02:06]}  c6 {[%clk 0:02:52]} 18. Nc2 {[%clk 0:02:00]}  Bf5 {[%clk 0:02:52]} 19. Re2 {[%clk 0:01:50]}  Bd3 {[%clk 0:02:50]} 20. Rd2 {[%clk 0:01:50]}  Be4 {[%clk 0:02:47]} 21. Bxd6 {[%clk 0:01:46]}  Bxf3 {[%clk 0:02:44]} 22. Qxf3 {[%clk 0:01:32]}  Ne6 {[%clk 0:02:43]} 23. Rxb7 {[%clk 0:01:26]}  Nd4 {[%clk 0:02:34]} 24. Nxd4 {[%clk 0:01:10]}  Qxd6 {[%clk 0:02:33]} 25. Qxc6 {[%clk 0:01:09]}  Qf4 {[%clk 0:02:30]} 26. Nf3 {[%clk 0:01:02]}  Rac8 {[%clk 0:02:22]} 27. Qxa4 {[%clk 0:00:57]}  Rxc4 {[%clk 0:02:22]} 28. Qa3 {[%clk 0:00:49]}  g5 {[%clk 0:02:10]} 29. g3 {[%clk 0:00:43]}  Qe4 {[%clk 0:02:09]} 30. Rb3 {[%clk 0:00:39]}  Rfc8 {[%clk 0:02:03]} 31. Re3 {[%clk 0:00:36]}  Qc6 {[%clk 0:01:57]} 32. Qd6 {[%clk 0:00:28]}  Qb5 {[%clk 0:01:48]} 33. Rd1 {[%clk 0:00:17]}  Rc1 {[%clk 0:01:45]} 34. Ree1 {[%clk 0:00:14]}  Rxd1 {[%clk 0:01:43]} 35. Rxd1 {[%clk 0:00:15]}  h5 {[%clk 0:01:40]} 36. Qd5 {[%clk 0:00:14]}  Rc5 {[%clk 0:01:39]} 37. Qd8+ {[%clk 0:00:11]}  Kh7 {[%clk 0:01:38]} 38. Qd3+ {[%clk 0:00:10]}  Qxd3 {[%clk 0:01:37]} 39. Rxd3 {[%clk 0:00:11]}  g4 {[%clk 0:01:38]} 40. hxg4 {[%clk 0:00:11]}  hxg4 {[%clk 0:01:39]} 41. Nh4 {[%clk 0:00:10]}  Rc2 {[%clk 0:01:35]} 42. a3 {[%clk 0:00:08]}  Ra2 {[%clk 0:01:33]} 43. Nf5 {[%clk 0:00:07]}  Be5 {[%clk 0:01:29]} 44. Ne3 {[%clk 0:00:06]}  Bb2 {[%clk 0:01:20]} 45. Nxg4 {[%clk 0:00:05]}  Bxa3 {[%clk 0:01:20]} 46. Kg2 {[%clk 0:00:05]}  Bc5 {[%clk 0:01:19]} 47. Rf3 {[%clk 0:00:04]}  Kg7 {[%clk 0:01:19]} 48. Ne5 {[%clk 0:00:04]}  f6 {[%clk 0:01:19]} 49. Ng4 {[%clk 0:00:04]}  Bd4 {[%clk 0:01:19]} 50. Rf5 {[%clk 0:00:03]}  Kg6 {[%clk 0:01:17]} 51. Rf4 {[%clk 0:00:03]}  Bc3 {[%clk 0:01:15]} 52. Ne3 {[%clk 0:00:03]}  Bd2 {[%clk 0:01:13]} 53. Nd5 {[%clk 0:00:03]}  Bxf4 {[%clk 0:01:13]} 54. Nxf4+ {[%clk 0:00:04]}  Kf5 {[%clk 0:01:13]} 55. Kf3 {[%clk 0:00:03]}  Ra3+ {[%clk 0:01:12]} 56. Kg2 {[%clk 0:00:04]}  Ke4 {[%clk 0:01:11]} 57. Ne2 {[%clk 0:00:03]}  Kd3 {[%clk 0:01:09]} 58. Nf4+ {[%clk 0:00:04]}  Kd2 {[%clk 0:01:09]} 59. Nd5 {[%clk 0:00:03]}  Ra6 {[%clk 0:01:05]} 60. Nf4 {[%clk 0:00:01]}  Kd1 {[%clk 0:01:02]} 61. Nh3 {[%clk 0:00:02]}  Ke1 {[%clk 0:01:01]} 62. Nf4 {[%clk 0:00:03]}  Ra4 {[%clk 0:01:00]} 63. Nd3+ {[%clk 0:00:02]}  Kd2 {[%clk 0:00:59]} 64. Nf4 {[%clk 0:00:03]}  Ra2 {[%clk 0:00:55]} 65. Nh3 {[%clk 0:00:02]}  Ke2 {[%clk 0:00:53]} 66. Ng1+ {[%clk 0:00:01]}  Kd3 {[%clk 0:00:52]} 67. Nh3 {[%clk 0:00:02]}  Ke4 {[%clk 0:00:52]} 68. Nf4 {[%clk 0:00:02]}  f5 {[%clk 0:00:53]} 69. Nh3 {[%clk 0:00:03]}  Rc2 {[%clk 0:00:52]} 70. Nf4 {[%clk 0:00:03]}  Rc8 {[%clk 0:00:48]} 71. Nh3 {[%clk 0:00:04]}  Rh8 {[%clk 0:00:47]} 72. Nf4 {[%clk 0:00:04]}  Rg8 {[%clk 0:00:47]} 73. Nh3 {[%clk 0:00:05]}  Rb8 {[%clk 0:00:47]} 74. Nf4 {[%clk 0:00:05]}  Rb2 {[%clk 0:00:47]} 75. Nh3 {[%clk 0:00:04]}  Kd3 {[%clk 0:00:42]} 76. Nf4+ {[%clk 0:00:05]}  Kd2 {[%clk 0:00:43]} 77. Nh3 {[%clk 0:00:04]}  Ke1 {[%clk 0:00:43]} 78. Kg1 {[%clk 0:00:05]}  Ke2 {[%clk 0:00:41]} 79. Kg2 {[%clk 0:00:05]}  Ke1 {[%clk 0:00:40]} 80. Kg1 {[%clk 0:00:05]}  Rb4 {[%clk 0:00:38]} 81. Kg2 {[%clk 0:00:05]}  Ke2 {[%clk 0:00:36]} 82. Nf4+ {[%clk 0:00:05]}  Kd2 {[%clk 0:00:36]} 83. Nh3 {[%clk 0:00:04]}  Kd3 {[%clk 0:00:36]} 84. Nf4+ {[%clk 0:00:04]}  Ke4 {[%clk 0:00:37]} 85. Nh3 {[%clk 0:00:04]}  Ke5 {[%clk 0:00:35]} 86. Nf4 {[%clk 0:00:04]}  Ra4 {[%clk 0:00:33]} 87. Nd3+ {[%clk 0:00:03]}  Kf6 {[%clk 0:00:33]} 88. Nf4 {[%clk 0:00:02]}  Kg5 {[%clk 0:00:33]} 89. Ne6+ {[%clk 0:00:01]}  Kg4 {[%clk 0:00:33]} 90. Nf4 {[%clk 0:00:01]}  Rxf4 {[%clk 0:00:32]} 91. gxf4 {[%clk 0:00:01]}  Kxf4 {[%clk 0:00:33]} 0-1


[Site "https://www.chess.com"]